bitfinex-derivatives/quotes_ETHF0:USTF0_20250730
["timestamp","ask_amount","ask_price","bid_price","bid_amount"]
[1753878745781,10.70559201,3770.4,3770.3,0.00528456]
[1753878745991,51.50559201,3770.4,3770.3,0.00528456]
[1753878746883,3.657,3770.3,3769.4,3.2078]
[1753878747079,3.2078,3770.0,3769.4,3.73839]
[1753878747281,3.657,3769.5,3769.4,4.4959]
[1753878747685,3.657,3769.5,3769.1,3.2078]
[1753878747891,1.4584,3768.9,3768.8,0.53068]
[1753878748086,2.3287,3768.9,3768.7,4.64599]
[1753878748291,2.3287,3768.9,3768.8,5.30546197]
[1753878748579,2.3287,3768.9,3768.8,1.2881]
[1753878749880,0.53069,3768.8,3768.5,0.53072]
[1753878750082,1.4584,3768.6,3768.5,0.0045]
[1753878750387,2.3287,3768.6,3768.5,5.31115852]
[1753878750587,0.53071,3768.7,3768.6,0.0045]
[1753878750883,3.84079201,3768.8,3768.7,1.4382]
[1753878751090,3.84079201,3768.8,3768.7,2.7263]
[1753878751288,1.50099201,3768.8,3768.7,10.0311]
[1753878751478,1.50099201,3768.8,3768.7,5.0311]
[1753878751894,1.49649201,3768.8,3768.7,5.0311]
[1753878752388,0.8703,3769.4,3769.3,0.53062]
[1753878752582,0.8703,3769.9,3769.3,3.2078]
[1753878752784,0.5306,3769.5,3769.3,5.30679933]
[1753878752990,0.53063,3769.2,3769.0,0.53065]
[1753878753186,4.18762,3769.3,3769.1,0.53063]
[1753878753383,3.657,3769.6,3769.1,5.30679933]
[1753878753584,2.3287,3769.5,3768.9,5.30679933]
[1753878753788,2.8593,3769.5,3769.3,0.5306]
[1753878753994,2.3287,3769.3,3769.1,0.53063]
[1753878754189,2.3287,3769.2,3769.1,0.53063]
[1753878754387,3.657,3769.2,3769.1,5.83693654]
[1753878755002,3.657,3769.6,3769.3,0.53061]
[1753878755193,3.657,3769.5,3768.8,1.32672]
[1753878755491,3.657,3769.4,3769.2,0.53062]
[1753878755696,3.657,3769.3,3769.2,0.53062]
[1753878756084,0.8703,3769.3,3769.2,5.83643384]
[1753878756484,2.3287,3769.3,3769.2,5.83643384]
[1753878756999,4.71109201,3769.3,3769.2,5.83643384]
[1753878757291,3.84079201,3769.3,3769.2,5.83643384]
[1753878758490,2.1986,3770.3,3770.2,0.53049]
[1753878758696,3.657,3770.3,3770.2,0.53049]
[1753878759193,0.53049,3770.3,3770.1,0.53049]
[1753878759389,3.657,3770.0,3769.8,0.53054]
[1753878759693,3.657,3770.0,3769.9,0.53052]
[1753878759694,2.1986,3770.0,3769.9,0.53052]
[1753878759993,0.8703,3770.0,3769.9,0.53052]
[1753878760293,3.2078,3770.2,3770.1,0.5305]
[1753878760294,5.5365,3770.2,3770.1,0.5305]
[1753878760493,6.8648,3770.2,3770.1,0.5305]
[1753878760890,0.53054,3769.9,3769.8,0.53054]
[1753878761089,0.53055,3769.8,3769.6,0.53056]
[1753878761283,4.18757,3769.7,3769.5,8.51291014]
[1753878761489,3.657,3769.6,3769.5,3.2078]
[1753878761694,3.657,3769.6,3769.5,3.73838]
[1753878762390,3.657,3769.6,3769.5,3.2078]
[1753878762594,0.53063,3769.3,3769.2,0.53063]
[1753878762791,0.53061,3769.4,3769.3,0.53061]
[1753878763091,3.657,3769.5,3768.8,5.30567309]
[1753878763397,0.53066,3769.1,3769.0,0.53064]
[1753878763591,4.18766,3769.1,3768.9,0.53066]
[1753878763789,3.657,3769.0,3768.9,0.53066]
[1753878764588,3.657,3769.0,3768.8,0.53068]
[1753878764792,3.657,3768.9,3768.8,0.53068]
[1753878765292,7.49779201,3768.9,3768.8,0.53068]
[1753878765590,0.53073,3768.5,3768.4,0.53074]
[1753878765795,2.7867,3768.3,3768.2,0.54933626]
[1753878765989,3.657,3768.3,3768.2,0.01857626]
[1753878769499,0.5308,3768.0,3767.8,0.72721848]
[1753878769797,3.657,3767.9,3767.8,0.19639848]
[1753878770294,3.657,3767.9,3767.4,0.53087]
[1753878770295,0.53086,3767.6,3767.4,0.53087]
[1753878770602,3.2078,3767.5,3767.4,0.53087]
[1753878770788,44.0078,3767.5,3767.4,0.53087]
[1753878770995,47.6648,3767.5,3767.4,1.81897]
[1753878771296,6.8648,3767.5,3767.4,1.81897]
[1753878771491,5.5365,3767.5,3767.4,3.33787]
[1753878771686,5.5365,3767.5,3767.4,2.807]
[1753878771892,3.2078,3767.5,3767.3,0.53089]
[1753878772097,3.7674,3767.4,3767.3,0.53089]
[1753878772293,3.7674,3767.4,3767.2,0.5309]
[1753878772501,3.7674,3767.4,3766.5,4.0915]
[1753878772502,3.2078,3767.5,3766.4,1.32756]
[1753878772796,3.2078,3767.0,3766.8,3.25927]
[1753878772995,4.1167,3767.0,3766.9,2.7283]
[1753878773200,0.9089,3767.4,3767.2,2.7283]
[1753878773399,0.9089,3767.4,3767.3,3.2592]
[1753878773696,4.1167,3767.7,3767.6,3.25915]
[1753878774197,6.9752,3767.7,3767.6,1.79865]
[1753878774603,3.2078,3767.7,3767.6,4.14285]
[1753878774903,6.9752,3767.7,3767.6,0.53085]
[1753878775305,6.9752,3767.7,3767.6,1.79865]
[1753878775500,10.81599201,3767.7,3767.6,0.53085]
[1753878775696,2.91335,3767.6,3767.2,1.2678]
[1753878775897,23.3674,3767.5,3767.4,0.53088]
[1753878776196,3.7674,3767.5,3767.4,0.53088]
[1753878776808,3.7674,3767.5,3767.4,1.79868]
[1753878776998,4.29828,3767.4,3767.3,0.53089]
[1753878777198,19.597,3767.6,3767.0,1.2678]
[1753878777401,3.7674,3767.1,3767.0,1.99143]
[1753878777594,1.3849,3767.5,3767.4,0.53088]
[1753878777901,1.3849,3767.5,3767.4,1.79868]
[1753878778203,3.7674,3767.5,3767.4,1.79868]
[1753878778598,3.7674,3767.5,3767.4,1.2678]
[1753878778900,3.7674,3767.5,3766.5,3.2078]
[1753878779205,2.2938,3766.5,3766.4,0.53102]
[1753878779406,3.2078,3766.6,3766.4,0.53102]
[1753878779604,3.2078,3766.6,3766.5,3.612]
[1753878780307,6.9752,3766.6,3766.5,1.2678]
[1753878780502,3.7674,3766.3,3765.9,1.2678]
[1753878780806,0.53103,3766.4,3766.2,0.53105]
[1753878781002,0.53102,3766.5,3766.3,0.53103]
[1753878781308,3.7674,3766.4,3766.3,0.53103]
[1753878781608,0.9089,3766.1,3765.8,0.19650278]
[1753878781804,0.9089,3766.1,3766.0,3.25938]
[1753878782700,2.32618,3766.2,3766.0,4.14308]
[1753878782910,3.84079201,3766.6,3766.5,3.25931]
[1753878783310,3.84079201,3766.6,3766.5,4.14301]
[1753878783509,7.60819201,3766.6,3766.5,0.53101]
[1753878784305,2.8585,3766.3,3765.4,0.8837]
[1753878784509,1.4736,3766.1,3765.6,1.32785]
[1753878784709,1.4736,3766.1,3765.8,0.8837]
[1753878784906,3.7674,3766.1,3766.0,0.53108]
[1753878785405,3.2078,3766.2,3766.0,5.84097897]
[1753878785601,5.5903,3766.2,3766.0,5.84097897]
[1753878785806,2.8585,3766.1,3766.0,0.53108]
[1753878786008,3.7674,3766.1,3766.0,0.53108]
[1753878786209,3.7674,3766.1,3765.7,1.32781]
[1753878786210,2.2938,3766.0,3765.5,1.32788]
[1753878786404,3.7674,3765.7,3765.6,0.53114]
[1753878786602,3.2078,3765.8,3765.3,0.53117]
[1753878786806,6.9752,3765.4,3765.3,0.53118]
[1753878788516,6.9752,3765.4,3765.3,1.67028]
[1753878788517,3.2078,3765.4,3765.3,1.67028]
[1753878789614,2.3825,3765.7,3765.6,0.53114]
[1753878789813,3.2078,3765.8,3765.7,1.1391]
[1753878790012,3.2078,3765.8,3765.7,0.2554]
[1753878790208,3.7674,3765.7,3765.6,0.53114]
[1753878790804,7.04859201,3765.8,3765.7,0.2554]
[1753878791009,7.04859201,3765.8,3765.7,1.1391]
[1753878791211,7.04859201,3765.8,3765.7,6.45026805]
[1753878791409,3.2078,3766.3,3766.2,0.53105]
[1753878791604,3.2078,3766.3,3765.8,2.65556]
[1753878791605,3.2078,3767.1,3767.0,0.53094]
[1753878791812,3.2078,3767.5,3767.4,0.53088]
[1753878792011,3.2078,3767.5,3767.4,1.53328]
[1753878792214,0.2,3767.9,3767.8,1.53323]
[1753878792536,0.2,3767.9,3767.8,6.84425701]
[1753878793016,1.3849,3768.8,3768.5,0.53073]
[1753878793219,3.7674,3768.8,3768.7,0.5307]
[1753878793517,2.3825,3768.8,3768.7,5.83876693]
[1753878793816,3.7674,3768.8,3768.7,5.83749933]
[1753878794411,3.2078,3769.0,3768.7,5.30679933]
[1753878794612,3.7674,3768.8,3768.7,5.30679933]
[1753878794910,7.60819201,3768.8,3768.7,5.30679933]
[1753878798619,8.13888201,3768.8,3768.7,5.30679933]
[1753878798822,7.60819201,3768.8,3768.7,5.30679933]
[1753878799622,4.74969201,3768.8,3768.7,5.42549933]
[1753878799923,7.60819201,3768.8,3768.7,5.30679933]
[1753878800721,8.13888201,3768.8,3768.7,5.30679933]
[1753878801311,0.53075,3768.4,3768.1,3.73857]
[1753878801517,3.73855,3768.4,3768.1,0.53077]
[1753878801718,3.6265,3768.2,3768.1,0.53077]
[1753878802018,3.6265,3768.2,3768.1,5.84176933]
[1753878802923,3.6265,3768.2,3768.1,5.96516933]
[1753878803121,3.6265,3768.2,3768.1,5.30679933]
[1753878803722,0.53079,3768.1,3767.8,0.53081]
[1753878803917,1.4296,3768.0,3767.8,0.53081]
[1753878804124,3.6265,3767.9,3767.7,0.53084]
[1753878804421,0.53078,3768.2,3767.9,0.53081]
[1753878804617,3.2078,3768.4,3767.8,5.30764433]
[1753878804618,3.6265,3768.0,3767.8,5.83846433]
[1753878804927,3.6265,3767.9,3767.8,5.30764433]
[1753878805222,3.6265,3767.3,3767.2,0.53091]
[1753878805528,4.5565,3767.6,3767.5,0.53507]
[1753878805723,1.3487,3768.0,3767.9,0.53502]
[1753878805923,3.2078,3768.1,3767.9,1.43652]
[1753878806228,3.2078,3768.1,3768.0,1.0333]
[1753878806721,2.2778,3768.5,3768.4,0.53075]
[1753878806927,3.6265,3768.5,3768.4,0.53075]
[1753878807127,3.6265,3768.5,3768.4,5.30778519]
[1753878807324,3.73853,3768.6,3768.3,0.53075]
[1753878807625,2.2778,3768.4,3768.3,0.53075]
[1753878807829,3.6265,3768.4,3768.3,0.53075]
[1753878808228,3.6265,3768.4,3768.3,0.53495]
[1753878808623,3.2078,3768.6,3768.5,0.53073]
[1753878808818,5.4856,3768.6,3768.3,6.33646263]
[1753878809125,3.6265,3768.5,3768.4,0.53074]
[1753878809528,3.6265,3768.5,3768.4,5.83810263]
[1753878810429,7.46729201,3768.5,3768.4,5.83810263]
[1753878810633,3.84079201,3768.5,3768.4,6.87140263]
[1753878811320,0.8482,3769.4,3769.3,0.53062]
[1753878811632,1.63918,3769.9,3769.4,0.5306]
[1753878811633,0.8482,3769.6,3769.4,0.5306]
[1753878811827,3.30886,3769.8,3769.5,0.53058]
[1753878812029,2.7783,3769.7,3769.6,0.53057]
[1753878812330,3.6265,3769.7,3769.6,5.8377918]
[1753878812523,3.6265,3769.7,3769.6,0.53057]
[1753878812724,3.6265,3769.7,3769.6,5.83610234]
[1753878813021,0.20958,3769.9,3769.7,0.53055]
[1753878813022,3.6265,3769.8,3769.7,0.53055]
[1753878813429,0.8482,3769.8,3769.7,0.53055]
[1753878813833,0.20958,3769.9,3769.7,0.53055]
[1753878814331,0.8482,3769.8,3769.7,0.53055]
[1753878814532,3.84079201,3769.8,3769.7,0.53055]
[1753878815333,3.17236201,3769.8,3769.7,5.53055]
[1753878815523,2.44883201,3769.8,3769.7,5.53055]
[1753878816433,6.07533201,3769.8,3769.7,0.53055]
[1753878816625,4.72663201,3769.8,3769.7,0.53055]
[1753878816824,6.07533201,3769.8,3769.7,0.53055]
[1753878817429,3.29703201,3769.8,3769.7,0.53055]
[1753878817727,4.15706,3769.7,3769.6,5.30553234]
[1753878817931,3.6265,3769.5,3769.3,0.53061]
[1753878818132,3.6265,3769.4,3769.3,0.53061]
[1753878818619,3.6265,3769.4,3769.3,5.8360016]
[1753878818825,3.6265,3769.4,3769.3,5.3053916]
[1753878820327,2.44883201,3769.4,3769.3,5.3053916]
[1753878820527,2.44883201,3769.4,3769.3,5.8360116]
[1753878821726,1.16725201,3769.4,3769.3,10.8360116]
[1753878822133,0.60324201,3769.4,3769.3,10.8360116]
[1753878822332,2.01e-06,3769.4,3769.3,10.8360116]
[1753878822836,0.20958,3769.9,3769.8,0.53055]
[1753878823035,0.20958,3769.9,3769.8,3.73835]
[1753878823232,1.05778,3769.9,3769.8,9.0443046]
[1753878823537,3.83608,3769.9,3769.8,9.0443046]
[1753878824236,0.20958,3769.9,3769.8,9.0443046]
[1753878824632,1.05778,3769.9,3769.8,9.0443046]
[1753878824930,2.48738,3769.9,3769.8,9.0443046]
[1753878825130,3.83608,3769.9,3769.8,9.0443046]
[1753878825834,7.67687201,3769.9,3769.8,9.0443046]
[1753878826731,7.67687201,3769.9,3769.8,3.7428546]
[1753878826931,7.67687201,3769.9,3768.6,1.32677]
[1753878826932,2.7783,3769.8,3768.9,3.2078]
[1753878827134,7.35921201,3769.9,3769.6,0.53056]
[1753878827330,0.53056,3769.8,3769.5,0.53058]
[1753878827531,3.6265,3769.8,3769.0,2.8195]
[1753878827734,3.6265,3769.8,3769.7,0.53055]
[1753878827932,0.8482,3769.8,3769.7,3.35005]
[1753878828132,0.8482,3769.8,3769.7,6.55785]
[1753878828328,3.6265,3769.8,3769.6,0.53057]
[1753878828536,4.05037201,3769.9,3769.8,0.53055]
[1753878828838,0.53058,3769.7,3769.5,0.53058]
[1753878829041,4.58092201,3769.9,3769.7,0.53056]
[1753878829240,3.6265,3769.8,3769.7,0.53056]
[1753878829538,3.6265,3769.7,3769.6,0.53057]
[1753878829939,0.53056,3769.8,3769.3,3.2078]
[1753878830142,0.53056,3769.8,3769.5,0.53059]
[1753878830441,6.03769201,3769.7,3769.6,0.53057]
[1753878830842,7.46729201,3769.7,3769.5,0.53059]
[1753878831036,3.6265,3769.6,3769.5,0.53059]
[1753878832341,3.84079201,3769.7,3769.5,3.41269]
[1753878832540,0.8836,3769.6,3769.5,0.53059]
[1753878832846,3.84079201,3769.7,3769.5,1.30149]
[1753878833046,3.84079201,3769.7,3769.6,2.8821]
[1753878833343,4.72439201,3769.7,3769.6,2.8821]
[1753878833544,7.53949201,3769.7,3769.6,2.8821]
[1753878833746,4.72439201,3769.7,3769.6,2.8821]
[1753878833943,3.84079201,3769.7,3769.6,2.8821]
[1753878834143,7.53949201,3769.7,3769.6,1.5407]
[1753878834535,4.72439201,3769.7,3769.6,2.8821]
[1753878834939,4.72439201,3769.7,3769.5,0.53059]
[1753878835246,3.6987,3769.6,3769.5,0.53059]
[1753878835445,3.6987,3769.6,3769.5,2.07129]
[1753878835744,3.6987,3769.6,3769.5,0.53059]
[1753878835940,0.8836,3769.6,3769.5,0.53059]
[1753878836142,3.6987,3769.6,3769.5,2.07129]
[1753878836349,0.8836,3769.6,3769.5,0.53059]
[1753878836647,3.6987,3769.6,3769.5,3.41269]
[1753878837751,3.84079201,3769.7,3769.5,4.18359]
[1753878837952,3.84079201,3769.7,3769.6,3.653]
[1753878839051,1e-05,3769.9,3769.7,0.53057]
[1753878839258,0.8836,3770.5,3770.4,0.53047]
[1753878839451,6.0229,3771.1,3771.0,0.53039]
[1753878839752,2.8151,3771.1,3771.0,0.53039]
[1753878839960,1e-05,3771.3,3771.2,2.07106]
[1753878840157,1e-05,3771.3,3771.2,5.81986]
[1753878840357,1e-05,3771.3,3771.2,3.73816]
[1753878842458,4.72440201,3771.3,3771.2,5.27886]
[1753878843357,7.53950201,3771.3,3771.2,5.27886]
[1753878843861,3.84080201,3771.3,3771.1,0.53037]
[1753878844051,3.6987,3771.2,3771.1,0.53037]
[1753878844460,0.8836,3771.2,3771.1,5.27887]
[1753878844960,3.84080201,3771.3,3771.1,10.58229203]
[1753878845154,3.84080201,3771.3,3771.2,1.5407]
[1753878845355,1e-05,3771.3,3771.1,11.12329203]
[1753878846058,1e-05,3771.3,3771.1,10.58229203]
[1753878846257,1e-05,3771.3,3771.2,1.5407]
[1753878846453,3.84080201,3771.3,3771.2,1.5407]
[1753878846854,3.84080201,3771.3,3771.2,2.0817]
[1753878847160,3.84080201,3771.3,3771.1,4.27917]
[1753878847459,3.84080201,3771.3,3771.2,25.3052814]
[1753878847655,3.84080201,3771.3,3771.2,26.8459814]
[1753878847860,3.26804201,3771.3,3771.2,26.8459814]
[1753878848254,2.73555201,3771.3,3771.2,26.8459814]
[1753878848654,1e-05,3771.9,3771.5,1.5407]
[1753878848853,1e-05,3771.9,3771.8,1.5407]
[1753878849065,1e-05,3771.9,3771.8,7.9152614]
[1753878849561,3.6987,3772.8,3772.7,0.53015]
[1753878849760,3.6987,3772.8,3772.7,2.07085]
[1753878850060,3.6987,3772.8,3772.7,7.37328779]
[1753878851157,3.6987,3773.3,3773.2,0.53008]
[1753878851656,3.6987,3773.3,3773.2,5.83125288]
[1753878851961,3.6987,3773.3,3773.2,7.37195288]
[1753878852658,3.6987,3773.3,3773.2,5.30117288]
[1753878852861,0.53009,3773.2,3772.6,19.445]
[1753878853062,2.8151,3773.1,3772.9,0.53011]
[1753878853355,3.84079201,3773.3,3772.9,0.53011]
[1753878853356,0.8836,3773.0,3772.9,5.27861]
[1753878853766,0.8836,3773.0,3772.9,5.81961]
[1753878854464,4.72439201,3773.3,3773.2,2.07078]
[1753878854968,4.72439201,3773.3,3773.2,7.37167187]
[1753878855166,4.72439201,3773.3,3773.2,27.35367187]
[1753878855167,3.84079201,3773.3,3773.2,27.35367187]
[1753878855361,1.0836,3773.9,3773.8,2.07069]
[1753878855666,1.0836,3773.9,3773.8,30.01938187]
[1753878856260,0.2,3773.9,3773.8,30.01938187]
[1753878856467,3.8987,3773.9,3773.8,9.03868187]
[1753878856667,1.0836,3773.9,3773.8,30.01438187]
[1753878857366,0.2,3773.9,3773.8,30.55538187]
[1753878857572,1.5439,3774.7,3774.6,0.52988]
[1753878857862,2.1548,3775.3,3775.2,2.0705]
[1753878858060,0.8836,3775.3,3775.2,21.5025]
[1753878858260,0.2,3775.9,3775.8,0.52971]
[1753878858464,3.0151,3775.9,3775.8,0.52971]
[1753878858664,3.0151,3775.9,3775.8,5.8293377]
[1753878858856,3.8987,3775.9,3775.8,5.8293377]
[1753878859063,3.8987,3775.9,3775.8,5.2996277]
[1753878859759,7.73949192,3775.9,3775.8,5.2996277]
[1753878860464,7.73949192,3775.9,3775.8,3.8943277]
[1753878860666,3.6987,3775.7,3775.1,3.2078]
[1753878860868,0.52975,3775.6,3775.2,0.52979]
[1753878861166,0.8836,3775.3,3775.2,3.41189]
[1753878861565,0.8836,3775.3,3775.2,22.83389]
[1753878862162,3.6354,3775.3,3775.2,22.83389]
[1753878862361,3.6354,3775.3,3775.2,19.422]
[1753878862764,2.156,3775.3,3775.2,22.1515]
[1753878862964,0.8836,3775.3,3775.2,22.1515]
[1753878863864,3.6354,3775.3,3775.2,22.1425]
[1753878864070,3.6354,3775.3,3775.2,19.413]
[1753878864676,3.6354,3775.3,3775.1,3.73761]
[1753878864677,3.6595,3775.2,3775.1,3.2078]
[1753878865268,0.9077,3775.2,3775.1,11.2349624]
[1753878865770,2.3871,3775.2,3775.1,11.2349624]
[1753878865969,3.6595,3775.2,3775.1,8.5054624]
[1753878866763,0.52981,3775.1,3774.6,3.2078]
[1753878866970,0.9077,3774.8,3774.6,3.2078]
[1753878867166,3.84079192,3775.2,3774.5,19.404]
[1753878867365,3.6595,3775.1,3774.8,0.52985]
[1753878867559,0.9077,3774.9,3774.8,0.52985]
[1753878867771,3.6595,3774.9,3774.8,0.52985]
[1753878868666,2.3871,3774.8,3774.7,0.52986]
[1753878868867,0.52988,3774.7,3774.4,0.5299]
[1753878869071,1.2724,3774.6,3774.5,0.5299]
[1753878869274,3.6595,3774.6,3774.5,0.5299]
[1753878870569,4.74849192,3774.6,3774.5,0.5299]
[1753878870769,3.84079192,3774.6,3774.5,12.30374487]
[1753878871368,0.73146192,3774.6,3774.5,12.30374487]
[1753878871575,0.9077,3775.1,3774.5,12.30374487]
[1753878871576,2.7518,3775.4,3775.3,0.52978]
[1753878871770,0.9077,3775.4,3775.3,21.38268]
[1753878872176,2.1801,3775.7,3775.6,1.98864]
[1753878872369,3.6595,3775.6,3775.5,0.52975]
[1753878872565,5.02658588,3775.6,3775.3,0.52978]
[1753878872772,0.83736258,3775.5,3775.3,0.52978]
[1753878873077,0.83736258,3775.5,3775.2,19.391]
[1753878873078,2.7518,3775.1,3774.9,0.52984]
[1753878873274,0.83781801,3775.0,3774.9,19.91984]
[1753878873673,1.48113792,3775.7,3775.4,0.52977]
[1753878873879,0.83779833,3775.6,3775.4,0.52977]
[1753878874072,0.80066948,3775.5,3775.4,0.52977]
[1753878875371,1.7520674,3775.5,3775.4,0.52977]
[1753878875678,1.7520674,3775.5,3775.4,0.52473714]
[1753878876373,0.80066948,3775.5,3775.4,0.52473714]
[1753878876578,0.52978,3775.4,3775.0,19.383]
[1753878876877,0.52988,3774.7,3774.4,3.2078]
[1753878877179,3.2078,3775.4,3774.4,3.2078]
[1753878877180,0.94459143,3774.8,3774.6,0.52987]
[1753878877375,1.42655503,3774.8,3774.7,0.52987]
[1753878877575,0.94560947,3774.8,3774.7,0.52987]
[1753878877780,1.42655503,3774.8,3774.7,0.52987]
[1753878878279,1.41999219,3774.8,3774.7,0.52987]
[1753878878682,6.94985219,3774.8,3774.6,0.52987]
[1753878878876,0.52989,3774.6,3774.4,3.2078]
[1753878879082,4.15456183,3774.5,3774.3,0.52991]
[1753878879282,0.94677825,3774.4,3774.3,0.52991]
[1753878879477,0.52992,3774.4,3774.2,0.52993]
[1753878879780,0.52997,3774.0,3773.8,0.52999]
[1753878879981,0.53003,3773.6,3773.4,0.53005]
[1753878880279,3.2078,3773.5,3772.7,3.2078]
[1753878880479,0.53006,3773.4,3773.2,0.53007]
[1753878880880,3.73784,3773.5,3773.2,0.53007]
[1753878881284,3.2078,3773.5,3773.3,0.53005]
[1753878881481,3.2078,3773.5,3772.8,1.32535]
[1753878881482,3.73784,3773.5,3773.2,0.53007]
[1753878881984,0.53006,3773.3,3773.1,0.53009]
[1753878882184,1.47759089,3773.3,3773.1,0.53009]
[1753878882384,4.62779219,3773.5,3773.3,0.53006]
[1753878882385,0.94753089,3773.4,3773.3,0.53006]
[1753878882587,0.94753089,3773.5,3773.3,0.53006]
[1753878883384,0.94753089,3773.6,3773.5,0.53004]
[1753878885483,0.94753089,3773.7,3773.5,0.53004]
[1753878886184,0.82089862,3773.6,3773.5,0.53004]
[1753878886889,0.23336862,3773.6,3773.5,5.8300188]
[1753878887088,8.62e-06,3773.6,3773.5,5.8300188]
[1753878887390,0.94753089,3774.1,3773.9,0.52998]
[1753878887593,0.94753089,3774.2,3774.1,0.52995]
[1753878888494,0.94753089,3774.4,3774.3,0.52992]
[1753878889196,0.94753089,3774.5,3774.3,0.52992]
[1753878889796,0.94753089,3774.8,3774.7,0.52987]
[1753878890388,0.94753089,3774.9,3774.7,0.52987]
[1753878890591,0.94753089,3774.9,3774.6,0.52988]
[1753878890796,1.47738089,3774.9,3774.7,0.52986]
[1753878891100,0.52995,3774.2,3774.0,0.52996]
[1753878891294,0.52994,3774.2,3773.5,1.3251]
[1753878891691,41.32997,3774.1,3773.5,1.3251]
[1753878891892,0.52998,3774.0,3773.9,0.52997]
[1753878892087,0.53001,3773.7,3773.1,1.85532]
[1753878892386,40.8,3773.6,3773.4,0.53004]
[1753878892591,0.53005,3773.5,3773.3,0.53006]
[1753878892787,40.8,3773.6,3773.2,0.53007]
[1753878893001,0.53006,3773.4,3773.2,0.53007]
[1753878893201,0.53007,3773.3,3773.1,0.53008]
[1753878893593,3.73785,3773.5,3773.3,0.53005]
[1753878893810,3.2078,3773.5,3773.3,0.53005]
[1753878896010,3.2078,3773.5,3773.0,3.2078]
[1753878896211,0.53006,3773.4,3773.2,0.53007]
[1753878896413,3.2078,3773.5,3773.4,0.53005]
[1753878897712,3.2078,3773.9,3773.8,0.52999]
[1753878900203,40.8,3774.4,3774.3,0.52992]
[1753878900403,40.8,3774.4,3773.5,3.2078]
[1753878900606,0.53006,3773.4,3773.2,0.53008]
[1753878900812,0.53004,3773.5,3773.4,0.53004]
[1753878901109,0.53007,3773.3,3772.7,4.53317]
[1753878901510,0.53003,3773.6,3773.5,0.53003]
[1753878901714,3.73782,3773.7,3773.5,0.53003]
[1753878902010,0.53005,3773.4,3773.3,0.53006]
[1753878902602,0.53005,3773.4,3772.7,4.53315]
[1753878902603,42.12507,3773.6,3772.7,3.2078]
[1753878902807,3.2078,3773.3,3772.4,1.32548]
[1753878903008,0.53013,3772.9,3772.8,0.53013]
[1753878903208,0.53009,3773.2,3773.1,0.53008]
[1753878903403,0.53012,3773.0,3772.5,1.32545]
[1753878903606,0.53008,3773.2,3773.1,0.53008]
[1753878903806,3.73787,3773.3,3773.1,0.53008]
[1753878904109,3.73788,3773.3,3773.1,0.53008]
[1753878904310,0.53009,3773.2,3773.0,0.5301]
[1753878904505,1.32524,3773.1,3772.0,4.53342]
[1753878904703,0.53016,3772.7,3772.1,1.32559]
[1753878905306,0.53017,3772.6,3772.5,0.53016]
[1753878905507,0.53016,3772.7,3772.5,0.53016]
[1753878905707,3.73793,3772.9,3772.7,0.53015]
[1753878905909,3.2078,3772.9,3772.7,0.53015]
[1753878906615,3.73793,3772.9,3772.7,0.53014]
[1753878906815,3.2078,3772.9,3772.7,0.53013]
[1753878907317,23.06886,3773.4,3773.3,0.53006]
[1753878907517,22.5388,3773.4,3773.3,0.53006]
[1753878908014,44.0078,3773.4,3773.3,0.53006]
[1753878908207,3.2078,3773.9,3773.7,0.53001]
[1753878909313,19.326,3774.5,3774.4,0.52991]
[1753878909507,60.126,3774.5,3774.4,0.52991]
[1753878909711,19.326,3774.5,3774.4,0.52991]
[1753878909916,19.85591,3774.5,3774.2,0.52993]
[1753878910213,19.326,3774.5,3774.3,0.52991]
[1753878910607,19.326,3774.5,3773.8,3.2078]
[1753878910805,19.326,3774.5,3772.2,3.97665]
[1753878910806,3.2078,3774.2,3773.7,0.53]
[1753878911109,3.2078,3774.2,3773.2,3.2078]
[1753878911714,3.73775,3774.2,3773.4,1.32514]
[1753878912010,0.52996,3774.1,3773.9,0.52997]
[1753878912206,0.53003,3773.6,3772.9,1.32531]
[1753878912413,3.2078,3773.7,3773.0,1.32528]
[1753878912613,3.2078,3773.7,3773.5,0.53003]
[1753878912811,3.2078,3773.7,3773.0,1.32528]
[1753878912812,19.84997,3774.0,3773.8,0.52999]
[1753878913015,19.32,3774.0,3773.8,0.52999]
[1753878913819,19.84998,3774.0,3773.8,0.52999]
[1753878914025,19.84998,3774.0,3773.2,1.32521]
[1753878914026,19.32,3774.0,3773.5,0.53003]
[1753878914318,0.53005,3773.5,3773.3,0.53005]
[1753878914923,0.53007,3773.3,3773.1,0.53008]
[1753878915213,0.53011,3773.0,3772.8,0.53012]
[1753878915522,3.8165,3772.9,3772.8,0.53012]
[1753878917117,0.9084,3772.9,3772.8,3.32482]
[1753878917614,0.53008,3773.2,3772.6,1.32541]
[1753878917921,0.9084,3773.1,3773.0,0.5301]
[1753878918216,41.7084,3773.1,3773.0,3.3248]
[1753878918515,0.9084,3773.1,3773.0,3.3248]
[1753878919415,20.2144,3773.7,3773.6,0.53002]
[1753878919619,20.2144,3773.7,3773.6,3.32472]
[1753878920111,19.306,3773.7,3773.6,3.86642]
[1753878920309,4.64617,3774.0,3773.9,2.7947]
[1753878920519,0.9084,3773.6,3772.8,1.32534]
[1753878920714,4.53274,3774.0,3772.8,1.32534]
[1753878920715,0.9084,3773.5,3773.4,0.53005]
[1753878920922,3.8165,3773.5,3773.4,1.81915]
[1753878921219,4.34655,3773.4,3773.3,0.53006]
[1753878921416,3.8165,3773.4,3773.3,0.53006]
[1753878921819,0.9084,3773.9,3773.8,0.53]
[1753878922015,0.9084,3773.9,3773.8,1.2891]
[1753878922317,23.03878,3774.0,3773.2,0.53007]
[1753878922318,0.53007,3773.3,3773.2,0.53007]
[1753878922521,4.34657,3773.3,3773.2,0.53007]